{"text_format":"3","workbook":"xlsx","n_sheets":2,"sheets":["Detalles de contacto de cliente","Próximas citas"],"not_rendered":{"defined_names":5},"read":"whole","date_system":"1900"}

{"sheet":"Detalles de contacto de cliente","index":0,"n_rows":30,"n_cols":14,"rows_kept":30}
[null,"CLIENTE"," LISTA DE CONTACTOS",{"$nulls":10},"Próximas citas"]
[]
[null,"Id. del cliente","Nombre de la compañía","Nombre de contacto","Dirección de facturación","Ciudad","Estado","Código postal","País","Puesto del contacto","Número de teléfono","Número de fax","Dirección de correo","Notas"]
[null,"CU0001","A. Datum Corporation","Cano, Elvira","123 Main Street","Seattle","WA",{"v":9876,"d":"09876"},"EE. UU.","Directora",1235550134,1235550124,"elvira@adatum.com"]
[null,"CU0002","Adventure Works","Castellanos, Bartolomé","891 cherry Lane","Springfield","NH",12345,"EE. UU.","Responsable de Compras",4565550145,4565550146,"bartolome@adventure-works.com"]
[null,"CU0003","Alpine Ski House","Godínez, Óscar",{"$nulls":5},"Analista"]
[null,"CU0004","Blue Yonder Airlines","Padilla, Naiara",{"$nulls":5},"Socia directora"]
[null,"CU0005","City Power & Light","Casanova, Cecilio",{"$nulls":5},"Director ejecutivo"]
[null,"CU0006","Coho Vineyard","Armijo, Pedro",{"$nulls":5},"Consultora"]
[null,"CU0007","Coho Winery","Arrais, Candela",{"$nulls":5},"Jefa de contratación"]
[null,"CU0008","Coho Vineyard & Winery","Espinosa, Jeremías",{"$nulls":5},"Directora"]
[null,"CU0009","Contoso, Ltd","Mota, Óscar",{"$nulls":5},"Responsable de Compras"]
[null,"CU0010","Contoso Pharmaceuticals","Arteaga, Íker",{"$nulls":5},"Analista"]
[null,"CU0011","Consolidated Messenger","Nevárez, Jose",{"$nulls":5},"Socia directora"]
[null,"CU0012","Fabrikam, Inc.","Hermosilla, Alberto",{"$nulls":5},"Director ejecutivo"]
[null,"CU0013","Fourth Coffee","Fuentes, Verónica",{"$nulls":5},"Consultora"]
[null,"CU0014","Instituto de Diseño Gráfico","Matías, Carlos",{"$nulls":5},"Jefa de contratación"]
[null,"CU0015","Humongous Insurance","Melgar, Laura",{"$nulls":5},"Directora"]
[null,"CU0016","Litware, Inc.","Valladares, Sergio",{"$nulls":5},"Responsable de Compras"]
[null,"CU0017","Lucerne Publishing","Olivares, Claudia",{"$nulls":5},"Analista"]
[null,"CU0018","Margie's Travel","Delgadillo, Andrés",{"$nulls":5},"Socia directora"]
[null,"CU0019","Northwind Traders","Tijerina, Sergio",{"$nulls":5},"Director ejecutivo"]
[null,"CU0020","Proseware, Inc.","Valentín, Cristóbal",{"$nulls":5},"Consultora"]
[null,"CU0021","Escuela de Bellas Artes","Mendoza, Desiré",{"$nulls":5},"Jefa de contratación"]
[null,"CU0022","Southridge Video","Alcalá, Jorge",{"$nulls":5},"Directora"]
[null,"CU0023","Tailspin Toys","Linares, Julia",{"$nulls":5},"Responsable de Compras"]
[null,"CU0024","Trey Research","Tercedor, Alberto",{"$nulls":5},"Analista"]
[null,"CU0025","The Phone Company","Fontiveros, Asier",{"$nulls":5},"Socia directora"]
[null,"CU0026","Wide World Importers","Montoya, Jorge",{"$nulls":5},"Director ejecutivo"]
[null,"CU0027","Wingtip Toys","Amaraz, Álvaro",{"$nulls":5},"Consultora"]

{"sheet":"Próximas citas","index":1,"n_rows":26,"n_cols":7,"rows_kept":26}
[null,"Próximas","Citas",{"$nulls":3},"Detalles de contacto de cliente"]
[]
[null,"Fecha","Hora","Nombre del cliente","Asunto de la reunión","Asistentes","Notas adicionales"]
[null,{"$f":"TODAY()","v":"2018-09-12"},"14:30:00","Tailspin Toys","Facturación mensual","Julia, Alberto, Pedro"]
[null,{"$f":"TODAY()+1","v":"2018-09-13"},"17:00:00","Margie's Travel","Revisión de ventas","Andrés, Julia, Naiara"]
[null,{"$f":"TODAY()+2","v":"2018-09-14"},"10:30:00","Northwind Traders"]
[null,{"$f":"TODAY()+3","v":"2018-09-15"},"11:00:00","Humongous Insurance"]
[null,{"$f":"TODAY()+4","v":"2018-09-16"},"10:00:00","Alpine Ski House"]
[null,{"$f":"TODAY()+5","v":"2018-09-17"},"10:00:00","Contoso, Ltd"]
[null,{"$f":"TODAY()+6","v":"2018-09-18"},"16:00:00","Trey Research"]
[null,{"$f":"TODAY()+7","v":"2018-09-19"},"13:30:00","The Phone Company"]
[null,{"$f":"TODAY()+8","v":"2018-09-20"},"15:00:00","Litware, Inc."]
[null,{"$f":"TODAY()+9","v":"2018-09-21"},"10:30:00","Lucerne Publishing"]
[null,{"$f":"TODAY()+10","v":"2018-09-22"},"17:30:00","Coho Winery"]
[null,{"$f":"TODAY()+11","v":"2018-09-23"},"10:30:00","City Power & Light"]
[null,{"$f":"TODAY()+12","v":"2018-09-24"},"10:00:00","Wide World Importers"]
[null,{"$f":"TODAY()+13","v":"2018-09-25"},"18:00:00","Adventure Works"]
[null,{"$f":"TODAY()+14","v":"2018-09-26"},"17:30:00","City Power & Light"]
[null,{"$f":"TODAY()+15","v":"2018-09-27"},"11:30:00","Litware, Inc."]
[null,{"$f":"TODAY()+16","v":"2018-09-28"},"15:00:00","Proseware, Inc."]
[null,{"$f":"TODAY()+17","v":"2018-09-29"},"10:30:00","Proseware, Inc."]
[null,{"$f":"TODAY()+18","v":"2018-09-30"},"14:00:00","Contoso Pharmaceuticals"]
[null,{"$f":"TODAY()+19","v":"2018-10-01"},"11:30:00","Litware, Inc."]
[null,{"$f":"TODAY()+20","v":"2018-10-02"},"10:30:00","Instituto de Diseño Gráfico"]
[null,{"$f":"TODAY()+21","v":"2018-10-03"},"11:30:00","Tailspin Toys"]
[null,{"$f":"TODAY()+22","v":"2018-10-04"},"15:00:00","Contoso, Ltd"]